[Event "Israeli Team-ch 2023"]
[Site "Petah Tikva"]
[Date "2023.05.12"]
[Round "11.10"]
[White "Smirin, Ilia"]
[Black "Oratovsky, Michael"]
[Result "1/2-1/2"]
[ECO "C41"]
[WhiteElo "2596"]
[BlackElo "2422"]
[Annotator "TA"]
[PlyCount "64"]
[EventDate "2023.01.13"]
[EventCountry "ISR"]
[SourceTitle "playchess.com"]
[Source "ChessBase"]
[SourceQuality "1"]
[TimeControl "40/5400+30:1800+30"]

{[%evp 20,64,25,4,12,15,10,16,11,18,15,13,4,12,35,12,14,0,-5,0,18,6,11,3,9,0,0,0,0,0,0,0,0,0,0,0,0,0,0,0,0,0,0,-18,7,7,11]} 1. e4 {[%emt 0:01:09]} d6 {[%emt 0:10:36]} 2. d4 {[%emt 0:02:34]} Nf6 {[%emt 0:04:08]} 3. Nc3 {[%emt 0:00:18]} e5 {[%emt 0:00:06]} 4. Nf3 {[%emt 0:00:10]} Nbd7 {[%emt 0:00:07]} 5. Bc4 {[%emt 0:00:32]} Be7 {[%emt 0:00:22]} 6. O-O {[%emt 0:00:52]} O-O {[%emt 0:00:07]} 7. a4 {[%emt 0:00:57]} c6 {[%emt 0:01:54]} 8. Ba2 {[%emt 0:01:31]} a5 {[%emt 0:03:45]} 9. Re1 {[%emt 0:02:22]} exd4 {[%emt 0:02:53]} 10. Nxd4 {[%emt 0:00:43]} Nc5 {[%emt 0:00:17]} 11. h3 {[%emt 0:09:23]} Qb6 {[%emt 0:15:01] C41: Philidor Defence.} 12. Nb3 {[%emt 0:06:12]} Nxb3 {[%emt 0:01:36]} 13. Bxb3 {[%emt 0:00:05]} Be6 {[%emt 0:00:07] [#]} 14. Nd5 $1 {[%emt 0:08:47]} cxd5 {[%emt 0:29:40]} 15. exd5 {[%emt 0:00:58]} Nxd5 {[%emt 0:00:49]} 16. Bxd5 {[%emt 0:00:10]} Bxd5 {[%emt 0:00:16]} 17. Qxd5 {[%emt 0:05:45]} (17. Rxe7 $5 {[%cal Rd1d5]} Bc6 18. b3 $14 (18. Qxd6 Rfe8 $11)) 17... Bf6 {[%emt 0:01:55] [#] The position is equal.} 18. Qb5 $146 {[%emt 0:08:05]} (18. c3 {is interesting.} Rae8 19. Bg5 Bxg5 20. Qxg5 Re5 21. Rxe5 dxe5 22. Rb1) ({Predecessor:} 18. Rb1 Rac8 19. Be3 Qb4 20. c3 Qxa4 21. Qxb7 Rb8 22. Qd5 Rfd8 23. Ra1 Qb5 24. Rxa5 Qxd5 25. Rxd5 Rxb2 26. Bf4 h6 27. Rxd6 Rxd6 28. Bxd6 Bxc3 {½-½ Gullaksen,E (2391)-Johannessen,L (2521) Fagernes Norsk op 2013 (7)}) 18... Qxb5 {[%emt 0:22:28]} 19. axb5 {[%emt 0:00:16]} Rfc8 {[%emt 0:02:31]} 20. c3 {[%emt 0:00:43]} a4 {[%emt 0:01:14]} 21. Be3 {[%emt 0:05:10]} Ra5 {[%emt 0:00:29]} 22. b6 {[%emt 0:00:06]} h5 {[%emt 0:00:23]} 23. Ra2 {[%emt 0:04:43]} d5 {[%emt 0:00:09]} 24. Rd1 {[%emt 0:00:34]} Rc4 {[%emt 0:01:02]} 25. b4 {[%emt 0:03:50]} Rb5 {[%emt 0:00:13]} 26. Rxa4 {[%emt 0:00:06] [#] And now Ra5 would win.} Bxc3 {[%emt 0:00:08]} 27. Ra8+ {[%emt 0:04:05]} Kh7 {[%emt 0:00:02] ...d4 would be deadly.} 28. Rd8 {[%emt 0:00:05]} d4 {[%emt 0:01:09]} 29. Bxd4 {[%emt 0:00:04]} Bxd4 {[%emt 0:00:24]} 30. R1xd4 {[%emt 0:00:27]} Rcxb4 {[%emt 0:00:50]} 31. R4d7 {[%emt 0:01:08]} Rxb6 {[%emt 0:00:44]} 32. Rxf7 {[%emt 0:00:08]} Rf6 {[%emt 0:00:29] An even fight not without its subleties.   Weighted Error Value: White=0.04 (flawless) /Black=0.03 (flawless)} 1/2-1/2

[Event "Israeli Team-ch 2023"]
[Site "Petah Tikva"]
[Date "2023.05.12"]
[Round "11.11"]
[White "Veinberg, Nimrod"]
[Black "Kogan, Arthur"]
[Result "1/2-1/2"]
[ECO "E25"]
[WhiteElo "2400"]
[BlackElo "2471"]
[Annotator "TA"]
[PlyCount "142"]
[EventDate "2023.01.13"]
[EventCountry "ISR"]
[SourceTitle "playchess.com"]
[Source "ChessBase"]
[SourceQuality "1"]
[TimeControl "40/5400+30:1800+30"]

{[%evp 20,142,15,6,51,17,50,45,43,45,50,44,73,0,0,0,73,71,93,96,109,105,112,48,44,51,78,50,90,83,88,87,90,31,68,30,89,71,102,108,149,13,49,15,91,91,123,116,123,128,116,128,113,122,114,114,155,117,121,80,79,79,78,78,131,129,147,133,134,130,130,130,132,127,128,126,127,128,115,97,102,58,90,85,95,20,25,37,72,90,72,71,106,104,125,111,122,72,72,72,72,72,87,89,237,180,246,240,421,0,72,0,418,400,29976,8,8,0,0,0,12,0,0,0,12]} 1. d4 {[%emt 0:00:02]} Nf6 {[%emt 0:00:15]} 2. c4 {[%emt 0:00:05]} e6 {[%emt 0:00:12]} 3. Nc3 {[%emt 0:00:25]} Bb4 {[%emt 0:00:18]} 4. a3 {[%emt 0:00:39]} Bxc3+ {[%emt 0:00:07]} 5. bxc3 {[%emt 0:00:05]} c5 {[%emt 0:02:26]} 6. f3 {[%emt 0:02:30]} d5 {[%emt 0:03:13]} 7. cxd5 {[%emt 0:04:19]} Nxd5 {[%emt 0:00:12]} 8. dxc5 {[%emt 0:00:45]} Qa5 {[%emt 0:01:18]} 9. e4 {[%emt 0:00:13]} Ne7 {[%emt 0:00:30]} 10. Be3 {[%emt 0:00:25]} O-O {[%emt 0:01:22]} 11. Qb3 {[%emt 0:02:28]} Nd7 {[%emt 0:01:16] E25: Nimzo-Indian: Sämisch: 5...c5 6 f3 d5 7 cxd5.} 12. a4 {[%emt 0:07:32]} Nc6 {[%emt 0:02:31]} 13. Bb5 {[%emt 0:05:32]} Qc7 {[%emt 0:18:11] White is slightly better.} 14. Nh3 {[%emt 0:05:59] [#]} Na5 $146 {[%emt 0:01:28]} ({Predecessor:} 14... Nce5 15. Qa3 b6 16. a5 bxc5 17. O-O Rb8 18. Rfb1 c4 19. a6 Nb6 20. Nf2 Rd8 21. Bd4 Bd7 22. Qe7 Ng6 {1-0 Moranda,W (2453)-Szymanska,M (2155) Kochan Memorial op-A 16th 2005 (1)}) 15. Qb4 {[%emt 0:02:20]} Nc6 {[%emt 0:00:34]} 16. Qb3 {[%emt 0:01:22]} (16. Qa3 $16) 16... Na5 $11 {[%emt 0:01:01] A dynamic duo of knights.} 17. Qb4 {[%emt 0:00:30]} (17. Qa3 $11) 17... Nc6 $16 {[%emt 0:00:40]} 18. Qa3 {[%emt 0:01:41]} b6 {[%emt 0:00:27]} 19. cxb6 {[%emt 0:02:29]} axb6 {[%emt 0:00:14]} 20. O-O {[%emt 0:01:20]} Ba6 {[%emt 0:02:36] [#]} 21. Bxc6 {[%emt 0:19:29]} Qxc6 $14 {[%emt 0:02:05]} 22. Rfb1 {[%emt 0:03:01]} Bc4 {[%emt 0:19:30]} 23. Nf2 {[%emt 0:11:50]} f5 {[%emt 0:07:36]} 24. exf5 {[%emt 0:05:43]} (24. Qe7 {is interesting.} Rxa4 25. Rxa4 Qxa4 26. Bd4) 24... exf5 {[%emt 0:00:32]} 25. Bd4 {[%emt 0:00:38] Dodges Rf6} Rfe8 {[%emt 0:02:11]} 26. Re1 {[%emt 0:01:24]} (26. Qb4 $16) 26... Rxe1+ $1 {[%emt 0:13:22]} 27. Rxe1 {[%emt 0:00:02]} Bf7 {[%emt 0:00:11]} (27... Nc5 $11 {remains equal.}) 28. Qc1 {[%emt 0:04:26]} h6 {[%emt 0:01:53]} 29. Qf4 {[%emt 0:00:06]} Qg6 {[%emt 0:08:05]} 30. Re7 {[%emt 0:10:50]} ({White should play} 30. Nd3 $16 {Threatens to win with Re7.} Re8 31. Rxe8+ Bxe8 32. h3) 30... Rxa4 {[%emt 0:01:38] aiming for ...Ra1+.} 31. h3 {[%emt 0:02:34]} (31. h4 $5 {[%cal Re7d7]} Nc5 32. Qb8+ Kh7 33. g4 fxg4 34. fxg4 Ra1+ 35. Kh2 $14) 31... Nf6 {[%emt 0:05:23]} (31... Nc5 $1 $11 {keeps the balance.}) 32. Qb8+ $16 {[%emt 0:00:16]} Ne8 {[%emt 0:00:58]} 33. Nd3 $36 {[%emt 0:02:11][%mdl 2048] White is in control. Black is weak on the dark squares} Ra2 {[%emt 0:02:02][%csl Ga2][%cal Rg6g2]} 34. Bf2 $1 {[%emt 0:02:26] Strongly threatening Ne5. Active counter play!} (34. Qxb6 $2 Qxg2#) 34... Ra1+ {[%emt 0:01:11]} 35. Kh2 $1 {[%emt 0:00:14]} ({Much less strong is} 35. Ne1 $6 Kf8 36. Re2 Rd1 $14) 35... Qd6+ {[%emt 0:00:48]} 36. Qxd6 {[%emt 0:00:02]} Nxd6 {[%emt 0:00:04]} 37. Ne5 {[%emt 0:00:43][%cal Oe7d7] Rd7! is the strong threat.} Rd1 {[%emt 0:02:02]} 38. Rd7 {[%emt 0:00:51]} Bb3 {[%emt 0:00:26]} 39. Bd4 {[%emt 0:01:04]} Nb5 {[%emt 0:00:33]} 40. Nc6 $1 {[%emt 0:01:19]} ({Reject} 40. Bxb6 Rxd7 41. Nxd7 Nxc3 $11) 40... Nxd4 {[%emt 0:00:34]} 41. Nxd4 {[%emt 0:04:45][%mdl 4096] Endgame KRB-KRN} Rd3 {[%emt 0:12:33]} (41... f4 $142) 42. Rc7 {[%emt 0:01:19]} Ba4 {[%emt 0:05:35]} 43. Ra7 {[%emt 0:04:46]} Be8 {[%emt 0:01:25]} 44. Nxf5 {[%emt 0:00:21]} Bd7 {[%emt 0:01:00]} 45. Nd4 {[%emt 0:00:37]} Be8 {[%emt 0:00:27]} 46. Re7 {[%emt 0:01:48]} Bf7 {[%emt 0:02:43]} 47. Rc7 {[%emt 0:00:20]} Be8 {[%emt 0:00:05]} 48. Kg3 {[%emt 0:02:02]} b5 {[%emt 0:01:14][%cal Ob5b4]} 49. Ne2 {[%emt 0:03:50]} Bf7 {[%emt 0:01:11]} 50. Kf4 {[%emt 0:08:27]} Rd2 {[%emt 0:02:14]} 51. Ke3 {[%emt 0:00:15]} Rc2 {[%emt 0:00:36]} 52. Nd4 {[%emt 0:00:59]} ({Better is} 52. Rc8+ $16 Kh7 53. Rd8) 52... Rxg2 $11 {[%emt 0:01:44]} 53. Nxb5 {[%emt 0:00:02]} Be6 {[%emt 0:02:13]} 54. h4 $1 {[%emt 0:00:25]} g5 {[%emt 0:03:44]} 55. hxg5 {[%emt 0:00:09]} Rxg5 {[%emt 0:00:07]} 56. Nd4 {[%emt 0:00:11][%cal Of3f4]} Bh3 {[%emt 0:00:48]} 57. c4 {[%emt 0:00:16][%cal Bc3c4,Bc4c5,Bc5c6][%mdl 32]} h5 {[%emt 0:00:20] [#]} 58. Kf4 {[%emt 0:00:56] Dodges h4} ({White should try} 58. f4 $1 {[%cal Rf4g5]} Rg3+ 59. Ke4) 58... Rg1 $16 {[%emt 0:01:00]} 59. c5 {[%emt 0:00:13] Ra7 would be deadly.} h4 {[%emt 0:00:30]} 60. c6 {[%emt 0:01:14]} Rd1 {[%emt 0:00:05]} 61. Ke3 {[%emt 0:03:41] Black must now prevent Re7.} ({Much weaker is} 61. Nf5 $6 Bxf5 62. Kxf5 h3 $11) 61... Rc1 {[%emt 0:00:59]} (61... Re1+ $16 62. Kf4 Rd1) 62. Ra7 {[%emt 0:01:29]} Rc3+ {[%emt 0:00:16] [#]} (62... Rc5 $142 63. Rb7 Rc4) 63. Kf4 $1 $18 {[%emt 0:01:42] Hoping for Kg5.} Rc4 $2 {[%emt 0:00:18]} (63... Rc5 {was necessary.} 64. Rb7 Rc3) 64. Ke3 $2 {[%emt 0:01:50]} (64. Ke5 $18 {is the precise move to win.}) 64... Rc3+ $1 $16 {[%emt 0:00:07]} 65. Kf4 $2 {[%emt 0:00:45][%mdl 8192]} (65. Ke4 $16) 65... Rc4 $18 {[%emt 0:00:06]} 66. Ke5 {[%emt 0:00:02]} Bg2 {[%emt 0:01:42]} (66... Rc5+ $18 67. Kd6 Rc4) 67. Nf5 $2 {[%emt 0:01:11]} (67. c7 {mates} Rc3 68. Ra8+ Kg7 69. Ne6+ Kh6 70. Rh8+ {[%mdl 64] Skewer} Kg6 71. Rg8+ {[%mdl 64] Skewer} Kh5 72. Rg5+ Kh6 73. Rxg2) 67... h3 {[%emt 0:00:29] The position is equal.} 68. Ra8+ {[%emt 0:00:24]} Kh7 {[%emt 0:00:06]} 69. Ra7+ {[%emt 0:00:01]} Kh8 {[%emt 0:00:44]} 70. Ra8+ {[%emt 0:00:04]} Kh7 {[%emt 0:00:04]} 71. Ra7+ {[%emt 0:00:17]} Kh8 {[%emt 0:00:11] Weighted Error Value: White=0.17 (very precise) /Black=0.15 (very precise)} 1/2-1/2

[Event "Israeli Team-ch 2023"]
[Site "Petah Tikva"]
[Date "2023.05.12"]
[Round "11.12"]
[White "Caspi, Israel"]
[Black "Guz, Ari"]
[Result "1/2-1/2"]
[ECO "D32"]
[WhiteElo "2472"]
[BlackElo "2306"]
[Annotator "TA"]
[PlyCount "87"]
[EventDate "2023.01.13"]
[EventCountry "ISR"]
[SourceTitle "playchess.com"]
[Source "ChessBase"]
[SourceQuality "1"]
[TimeControl "40/5400+30:1800+30"]

{[%evp 12,87,35,44,26,37,66,28,29,20,20,26,20,18,45,13,40,39,41,37,68,4,11,18,11,10,29,11,11,6,10,10,37,36,47,49,61,52,95,0,51,0,106,66,75,50,76,66,76,63,85,31,37,38,45,45,65,37,88,7,8,8,13,0,0,0,15,0,0,0,0,0,0,0,0,-38,0,0]} 1. d4 {[%emt 0:00:19]} d5 {[%emt 0:00:40]} 2. c4 {[%emt 0:00:47]} e6 {[%emt 0:00:09][%cal Be7e6,Be6d5,Bd5d4][%mdl 32]} 3. Nc3 {[%emt 0:00:03]} c5 {[%emt 0:01:04]} 4. cxd5 {[%emt 0:01:53]} exd5 {[%emt 0:00:17]} 5. Nf3 {[%emt 0:01:39]} Nc6 {[%emt 0:02:23]} 6. dxc5 {[%emt 0:00:13]} d4 {[%emt 0:00:31]} 7. Na4 {[%emt 0:00:06]} Bxc5 {[%emt 0:00:11][%mdl 64] [#] Decoy. D32: Tarrasch Defence: Sidelines and lines without g3.} 8. Nxc5 {[%emt 0:00:07]} Qa5+ {[%emt 0:00:05]} 9. Bd2 {[%emt 0:00:24]} Qxc5 {[%emt 0:02:57] White has an edge.} 10. Rc1 {[%emt 0:08:23]} Qb6 {[%emt 0:00:09]} 11. e3 {[%emt 0:00:07]} Nf6 {[%emt 0:08:32]} 12. Bc4 {[%emt 0:00:45]} O-O {[%emt 0:03:47]} 13. O-O {[%emt 0:00:05]} Bg4 {[%emt 0:01:02]} 14. exd4 {[%emt 0:05:18]} Rad8 {[%emt 0:08:23][%cal Od8d4]} 15. Bc3 {[%emt 0:15:37]} Rfe8 {[%emt 0:07:31]} 16. Qb3 {[%emt 0:19:40]} (16. Re1 $14) 16... Qxb3 $11 {[%emt 0:05:17]} 17. Bxb3 {[%emt 0:00:13] A strong pair of Bishops.} Bxf3 {[%emt 0:00:09]} 18. gxf3 {[%emt 0:00:03] [#]} h6 $146 {[%emt 0:26:45]} ({Predecessor:} 18... Nxd4 19. Bxd4 Rxd4 20. Rc7 Rd7 21. Rxd7 Nxd7 22. Rc1 Ne5 23. Rc7 g5 24. Rxb7 Nxf3+ {1-0 Valenzuela Fuentealba,L (2443)-Hernandez Riera,J (2204) CHI-ch Santiago de Chile 2017 (1)}) 19. Rcd1 {[%emt 0:06:56] White wants to play d5.} (19. Rfd1 $5 {[%cal Rd4d5]}) 19... Nd5 {[%emt 0:03:13]} 20. Rfe1 {[%emt 0:05:00] [#] aiming for Rxe8+.} Rxe1+ {[%emt 0:00:50]} 21. Rxe1 {[%emt 0:05:09]} Kf8 {[%emt 0:01:31]} 22. Kf1 {[%emt 0:04:18]} Nf6 {[%emt 0:06:54]} 23. Rd1 {[%emt 0:00:48]} Nd5 {[%emt 0:00:20]} 24. Bd2 {[%emt 0:01:16]} Nb6 {[%emt 0:02:00]} 25. Bc3 {[%emt 0:02:29]} Nd5 {[%emt 0:00:55]} 26. Bd2 {[%emt 0:03:47]} (26. Ke2 $14) 26... Nb6 $1 $16 {[%emt 0:00:07]} 27. Be3 {[%emt 0:00:06]} Nd5 {[%emt 0:00:41]} 28. a3 {[%emt 0:00:38]} Ke7 {[%emt 0:02:07]} 29. Ke2 {[%emt 0:02:11]} f5 {[%emt 0:02:45]} 30. Kd3 {[%emt 0:03:50]} Kf6 {[%emt 0:02:09]} 31. Bd2 {[%emt 0:01:10]} (31. h4 $16) 31... g5 $14 {[%emt 0:01:22]} 32. Bc3 {[%emt 0:01:52]} Nf4+ {[%emt 0:01:13]} 33. Ke3 {[%emt 0:10:13] d5+ would be deadly.} Nd5+ {[%emt 0:01:46]} ({Less strong is} 33... Re8+ 34. Kd2 $16) 34. Kd2 {[%emt 0:00:36]} Nxc3 {[%emt 0:01:27]} ({Better is} 34... b5 $14) 35. Kxc3 {[%emt 0:00:50][%mdl 4096] Endgame KRB-KRN} (35. bxc3 $16 Ne5 36. Ke2) 35... Rc8 $11 {[%emt 0:00:19]} 36. Kd3 {[%emt 0:00:28] Hoping for Re1.} Rd8 {[%emt 0:01:07]} 37. Kc3 {[%emt 0:00:02]} Rc8 {[%emt 0:00:08]} 38. Kd3 {[%emt 0:00:24] With the idea Re1.} Rd8 {[%emt 0:00:23]} 39. d5 {[%emt 0:00:54]} Ne5+ {[%emt 0:00:15]} 40. Ke2 {[%emt 0:00:39][%cal Of3f4]} Rd6 {[%emt 0:00:20]} 41. Ba2 {[%emt 0:04:53]} Ng6 {[%emt 0:00:58]} 42. Kd3 {[%emt 0:08:46]} Nh4 {[%emt 0:03:03]} 43. Ke2 {[%emt 0:04:07][%cal Of3f4]} Ng6 {[%emt 0:00:51][%mdl 1024] Black has compensation.} 44. Kd3 {[%emt 0:00:25] Weighted Error Value: White=0.20 (precise) /Black=0.10 (very precise)} 1/2-1/2

[Event "Israeli Team-ch 2023"]
[Site "Petah Tikva"]
[Date "2023.05.12"]
[Round "11.13"]
[White "Globus, Or"]
[Black "Boruchovsky, Avital"]
[Result "1/2-1/2"]
[ECO "D31"]
[WhiteElo "2411"]
[BlackElo "2553"]
[Annotator "TA"]
[PlyCount "109"]
[EventDate "2023.01.13"]
[EventCountry "ISR"]
[SourceTitle "playchess.com"]
[Source "ChessBase"]
[SourceQuality "1"]
[TimeControl "40/5400+30:1800+30"]

{[%evp 13,109,0,10,4,21,19,18,16,18,12,25,25,28,23,22,0,0,0,27,26,32,18,20,27,33,24,39,41,25,19,10,8,64,25,58,69,68,-26,-10,-61,-59,-111,-98,-147,-127,-263,-284,-268,-270,-411,-311,-299,-255,-257,-53,-310,-47,-69,0,-8,115,118,113,0,60,0,0,0,0,0,0,0,0,0,0,0,0,0,0,0,0,0,0,0,0,0,0,0,0,0,0,0,0,0,0,0,0,0]} 1. d4 {[%emt 0:00:10]} d5 {[%emt 0:00:36]} 2. c4 {[%emt 0:02:19]} e6 {[%emt 0:00:28]} 3. Nc3 {[%emt 0:03:20]} Be7 {[%emt 0:00:16]} 4. cxd5 {[%emt 0:09:45]} exd5 {[%emt 0:00:08]} 5. Bf4 {[%emt 0:00:01]} c6 {[%emt 0:00:09]} 6. e3 {[%emt 0:00:07]} Bf5 {[%emt 0:00:21]} 7. g4 {[%emt 0:01:28]} Be6 {[%emt 0:00:10]} 8. Qb3 {[%emt 0:05:16] D31: Queen's Gambit Declined: Semi-Slav without ...Nf6 (+ Marshall Gambit and Noteboom) and Exchange Variation lines without ...Nf6.} Qb6 {[%emt 0:03:26]} 9. f3 {[%emt 1:12:34]} g5 {[%emt 0:15:49]} 10. Be5 {[%emt 0:00:00]} f6 {[%emt 0:00:09]} 11. Bg3 {[%emt 0:00:00]} h5 {[%emt 0:06:23]} 12. gxh5 {[%emt 0:00:00]} Qxb3 {[%emt 0:03:53]} 13. axb3 {[%emt 0:00:00]} Nd7 {[%emt 0:00:07]} 14. h4 {[%emt 0:00:00]} Rxh5 {[%emt 0:06:15]} 15. Bd3 {[%emt 0:00:00]} Kf7 {[%emt 0:08:32] Against Bg6+} 16. Nge2 {[%emt 0:00:00]} f5 {[%emt 0:00:45]} 17. Kd2 {[%emt 0:00:00]} gxh4 {[%emt 0:10:40]} 18. Nf4 {[%emt 0:00:00]} Rh6 {[%emt 0:03:29]} 19. Bf2 {[%emt 0:00:00]} Bf6 {[%emt 0:01:47] [#]} 20. Nxe6 $146 {[%emt 0:00:17]} ({Predecessor:} 20. e4 Ne7 21. Be3 Rhh8 22. e5 Bg5 23. Nfxd5 Bxe3+ 24. Nxe3 Nb6 25. Nc4 Nxc4+ 26. bxc4 {½-½ Stremavicius,T (2543)-Narayanan,S (2356) Bay Area GM San Jose 2022 (5)}) 20... Kxe6 {[%emt 0:00:07]} 21. e4 {[%emt 0:00:01]} Bg5+ {[%emt 0:07:15]} 22. Kc2 $1 {[%emt 0:00:43] Black must now prevent exd5+.} fxe4 {[%emt 0:03:02]} ({Black should play} 22... Ne7 $11) 23. fxe4 $14 {[%emt 0:00:26]} Rf8 {[%emt 0:00:07]} 24. exd5+ {[%emt 0:03:53]} cxd5 {[%emt 0:00:09]} 25. Rhe1+ {[%emt 0:00:42]} (25. Rae1+ $14 Kd6 26. Bg3+ Bf4 27. Bxh4) 25... Kd6 $11 {[%emt 0:00:11][%cal Be6d6,Bd6c6,Bc6b6,Bb6c7][%mdl 32]} 26. Bg1 {[%emt 0:00:30]} (26. Nb5+ $11 Kc6 27. Nxa7+ Kb6 28. Re2) 26... h3 $36 {[%emt 0:05:24][%mdl 2048] Strongly threatening ...h2. Black is pushing.} 27. Bh2+ {[%emt 0:00:44]} ({White should try} 27. Rxa7 $15 Bf4 28. b4 (28. Rxb7 h2 $17)) 27... Bf4 $17 {[%emt 0:00:23]} 28. Nb5+ {[%emt 0:00:07]} Kc6 {[%emt 0:00:12]} 29. Bxf4 {[%emt 0:01:53]} (29. Re2 $17) 29... Rxf4 $19 {[%emt 0:00:08]} 30. Nxa7+ {[%emt 0:00:37]} Kb6 $1 {[%emt 0:00:20]} 31. Bb5 {[%emt 0:00:33]} (31. Re8 $142 Rf8 32. Rxf8 Nxf8 33. Nb5) 31... Rf2+ {[%emt 0:03:42]} (31... Kc7 $2 32. Rf1 Rxf1 33. Bxf1 $19) 32. Kc3 {[%emt 0:00:19]} Ndf6 {[%emt 0:01:47]} 33. Kb4 {[%emt 0:00:39] [#] Threatens to win with Re6+.} Ne4 $2 {[%emt 0:01:21]} (33... Rxb2 34. Nc8+ Kc7 35. Rac1+ Kd8 36. Nd6 $18) (33... Kc7 $1 $19 {[%cal Oh3h2] Hoping for ...h2!} 34. Rec1+ Kd6) 34. Nc8+ $1 $15 {[%emt 0:00:32]} Kc7 {[%emt 0:00:01]} 35. Ra8 {[%emt 0:00:26] Rc1+ would be deadly.} h2 {[%emt 0:03:30]} (35... Rxb2 $2 36. Rc1+ Rc6 37. Bxc6 bxc6 38. Rca1 $18) (35... Ngf6 $15 36. Rg1 (36. Rc1+ Kd8 $15) 36... Rh7 37. Rc1+ Kd8 38. Na7+ Ke7 39. Rc7+ Ke6 40. Re8+ Kd6 41. Rxh7 Nxh7 42. Rd8+ Ke6 43. Bd7+ Ke7) 36. Rc1+ $11 {[%emt 0:00:02] [#]} Rc6 $1 {[%emt 0:00:03]} 37. Bxc6 $16 {[%emt 0:00:06]} bxc6 {[%emt 0:00:07]} 38. Ra7+ {[%emt 0:01:20]} (38. Rca1 $16 {White wants to mate with R1a7+.} Kd7 39. Nb6+ {[%mdl 64] Discovered Attack} Kc7 40. Nxd5+ Kd6 41. Ne3 (41. Nc3 Ngf6 $16)) 38... Kd8 {[%emt 0:01:46]} (38... Kxc8 $11 39. Ra8+ Kb7 40. Rxg8 Rxb2) 39. Ra8 {[%emt 0:00:30]} (39. Rca1 $1 $14) 39... Rc2 {[%emt 0:03:02][%mdl 64] Deflection. The position is equal.} 40. Rca1 {[%emt 0:00:33] R1a7 would kill now.} Ne7 $1 {[%emt 0:02:02]} 41. Nxe7+ {[%emt 0:30:31]} Kxe7 $11 {[%emt 0:30:05][%mdl 4096] Endgame KRR-KRN} 42. R1a7+ {[%emt 0:00:00]} Ke6 {[%emt 0:00:00]} 43. Rh7 {[%emt 0:00:00]} Ng3 {[%emt 0:00:00]} ({Resist} 43... Rxb2 44. Rah8 Rd2 45. Rh6+ (45. Rxh2 Rxd4+ 46. Ka5 c5 $16) 45... Kf5 46. Rxh2 (46. Rxc6 Ng3 $11) 46... Rxd4+ 47. Ka5 $16) 44. Rah8 {[%emt 0:00:00]} h1=Q {[%emt 0:00:00]} (44... Rxb2 $2 45. Rh6+ Kf5 46. Rxh2 (46. Rxc6 h1=Q $15) 46... Rxh2 47. Rxh2 $18) 45. Rxh1 {[%emt 0:00:00]} Nxh1 {[%emt 0:00:00]} 46. Rxh1 {[%emt 0:00:00] KR-KR} Kd6 {[%emt 0:00:00]} 47. Rh6+ {[%emt 0:00:00]} Kc7 {[%emt 0:00:00]} 48. Rh3 {[%emt 0:02:34]} Rxb2 {[%emt 0:00:00]} 49. Kc3 {[%emt 0:00:02]} Rg2 {[%emt 0:00:00]} 50. Rh7+ {[%emt 0:00:27]} Kb6 {[%emt 0:00:00]} 51. Rh6 {[%emt 0:00:50]} Kb5 {[%emt 0:00:00]} 52. Rh8 {[%emt 0:00:16]} Rg3+ {[%emt 0:00:00]} 53. Kc2 {[%emt 0:00:12]} Rg2+ {[%emt 0:00:00]} 54. Kc3 {[%emt 0:00:03]} Rg3+ {[%emt 0:00:00]} 55. Kc2 {[%emt 0:00:06] Black had all chances to win. An interesting game.   Weighted Error Value: White=0.22 (precise) /Black=0.23 (precise)} 1/2-1/2

[Event "Israeli Team-ch 2023"]
[Site "Petah Tikva"]
[Date "2023.05.12"]
[Round "11.14"]
[White "Gorshtein, Ido"]
[Black "Gorodetzky, David"]
[Result "0-1"]
[ECO "A13"]
[WhiteElo "2498"]
[BlackElo "2492"]
[Annotator "TA"]
[PlyCount "56"]
[EventDate "2023.01.13"]
[EventCountry "ISR"]
[SourceTitle "playchess.com"]
[Source "ChessBase"]
[SourceQuality "1"]
[TimeControl "40/5400+30:1800+30"]

{[%evp 9,56,18,46,0,0,0,0,0,35,-42,-27,-60,-49,-48,-60,-101,-62,-74,-67,-91,-73,-111,-133,-141,-139,-224,-190,-204,-194,-197,-161,-236,-224,-435,-412,-729,-705,-921,-920,-916,-929,-1018,-1010,-969,-951,-1555,-1247,-1236,-1185]} 1. c4 {[%emt 0:00:04]} e6 {[%emt 0:00:36]} 2. Nf3 {[%emt 0:01:17]} Nf6 {[%emt 0:00:08]} 3. g3 {[%emt 0:00:18]} a6 {[%emt 0:06:33]} 4. Bg2 {[%emt 0:07:43]} b5 {[%emt 0:00:08]} 5. b3 {[%emt 0:05:06]} c5 {[%emt 0:06:21]} 6. d4 {[%emt 0:02:16] A13: English Opening: 1...e6.} (6. Nc3 $14) 6... Bb7 $11 {[%emt 0:06:07]} 7. d5 {[%emt 0:11:15]} exd5 {[%emt 0:03:19]} 8. Nh4 {[%emt 0:08:07] The position is equal.} Qa5+ {[%emt 0:07:11] [#]} 9. Kf1 $146 {[%emt 0:15:38]} (9. Nd2 $14) ({Predecessor:} 9. Bd2 Qb6 10. cxd5 Bxd5 11. e4 Bxe4 12. O-O Bxg2 13. Kxg2 Be7 14. Nf5 g6 15. Nxe7 Kxe7 {1-0 Skoberne,J (2561)-Suvorov,L (2279) Titled Tuesday intern op 04th May blitz 2021 (1)}) 9... Qc7 {[%emt 0:07:24] ...Qe5 would be deadly.} ({Much weaker is} 9... bxc4 10. bxc4 Qc7 11. Bf4 $11) 10. Bf4 {[%emt 0:03:11] Prevents Qe5.} d6 $1 {[%emt 0:04:03]} ({But not} 10... Bd6 11. Bxd6 Qxd6 12. Nc3 $11) 11. cxd5 {[%emt 0:00:43]} g6 {[%emt 0:00:59]} 12. Nc3 {[%emt 0:04:30]} Bg7 {[%emt 0:06:11]} 13. Rc1 {[%emt 0:00:27][%cal Ob3b4]} Qe7 {[%emt 0:04:51] Black continues to play with concentration.} 14. Qc2 {[%emt 0:10:23]} Nbd7 {[%emt 0:06:35]} 15. e4 {[%emt 0:00:30]} O-O {[%emt 0:03:34]} 16. Re1 {[%emt 0:02:26]} Rfe8 {[%emt 0:07:01]} 17. Bd2 {[%emt 0:02:28] [#]} (17. Nf3 $17) 17... c4 $1 $19 {[%emt 0:03:59]} 18. bxc4 {[%emt 0:02:30]} Rac8 {[%emt 0:02:17]} 19. cxb5 {[%emt 0:01:36]} axb5 {[%emt 0:02:01][%cal Ba6b5,Bb5b4][%mdl 32]} 20. Qb1 {[%emt 0:00:36]} (20. a3 $142) 20... b4 {[%emt 0:04:58][%mdl 64] Deflection} 21. Ne2 {[%emt 0:08:59]} (21. Qxb4 Nc5 22. Qb1) 21... Ba6 {[%emt 0:06:06]} 22. f3 {[%emt 0:04:43] [#]} (22. Bg5 $142 Nxe4 {[%mdl 64] Discovered Attack} 23. Bxe7 Nd2+ 24. Kg1 Nxb1 25. Nf4 (25. Bxd6 $2 {too greedy.} Nc3 $19)) 22... Nxd5 $1 {[%emt 0:01:15][%mdl 512] Black is clearly winning.} 23. Bh3 {[%emt 0:02:23]} (23. Kg1 Nc3) 23... Nc3 {[%emt 0:04:03]} 24. Qxb4 {[%emt 0:03:36]} Nxe2 {[%emt 0:00:27]} 25. Rxe2 {[%emt 0:00:03]} Rb8 {[%emt 0:01:55]} 26. Qa3 {[%emt 0:00:31]} Nc5 {[%emt 0:01:19]} 27. Ng2 {[%emt 0:02:01]} Bxe2+ {[%emt 0:01:26]} 28. Kxe2 {[%emt 0:00:11] [#]} Nxe4 $1 {[%emt 0:00:11][%mdl 512] Weighted Error Value: White=0.80/Black=0.25 (precise)} 0-1